Workbook

Sheet 本级一般收入表1
A2: 2019年达州市通川区地方一般公共预算收入决算表
F3: 单位：万元
A4: 预 算 科 目 | B4: 年初 预算数 | C4: 变动 预算数 | D4: 决算数 | E4: 为预算 | F4: 为上年决算 | G4: 上年决算 | H4: 上年决算数
A5: 一、增 值 税 | B5: 27,348 | C5: 27,348 | D5: 22,796 | E5: =D5/B5 -> 83.36% | F5: =D5/H5 -> 101.43% | H5: 22,474
A6: 二、企业所得税 | B6: 5,700 | C6: 5,700 | D6: 6,488 | E6: =D6/B6 -> 113.82% | F6: =D6/H6 -> 128.15% | H6: 5,063
A7: 三、企业所得税退税
A8: 四、个人所得税 | B8: 2,550 | C8: 2,550 | D8: 1,680 | E8: 65.88% | F8: =D8/H8 -> 78.43% | H8: 2,142
A9: 五、资源税 | B9: 562 | C9: 562 | D9: 323 | E9: 57.47% | F9: =D9/H9 -> 60.83% | H9: 531
A10: 六、城市维护建设税
A11: 七、房产税 | B11: 1,450 | C11: 1,450 | D11: 1,544 | E11: 106.48% | F11: =D11/H11 -> 112.70% | H11: 1,370
A12: 八、印花税 | B12: 1,400 | C12: 1,400 | D12: 1,294 | E12: 92.43% | F12: =D12/H12 -> 98.78% | H12: 1,310
A13: 九、城镇土地使用税 | B13: 1,350 | C13: 1,350 | D13: 1,318 | E13: 97.63% | F13: =D13/H13 -> 116.43% | H13: 1,132
A14: 十、土地增值税 | B14: 8,030 | C14: 8,030 | D14: 11,825 | E14: 147.26% | F14: =D14/H14 -> 167.54% | H14: 7,058
A15: 十一、车船税 | B15: 600 | C15: 600 | D15: 400 | E15: 66.67% | F15: =D15/H15 -> 70.92% | H15: 564
A16: 十二、耕地占用税 | B16: 4,169 | C16: 4,169 | D16: 1,416 | E16: 33.96% | F16: 100.00% | H16: 3,213
A17: 十三、契税 | B17: 11,500 | C17: 11,500 | D17: 9,252 | E17: 80.45% | F17: =D17/H17 -> 93.35% | H17: 9,911
A18: 十四、烟叶税
A19: 十五、环境保护税 | B19: 260 | C19: 260 | D19: 219 | E19: 100.00% | F19: 100.00% | H19: 234
A20: 十六、其他税收收入 | D20: 205
A21: 税收收入小计 | B21: =SUM(B5:B20) -> 64,919 | C21: =SUM(C5:C20) -> 64,919 | D21: =SUM(D5:D20) -> 58,760 | E21: 90.51% | F21: =D21/H21 -> 106.83% | H21: 55,002
A22: 十七、专项收入 | B22: 4,300 | C22: 4,300 | D22: 4,108 | E22: 95.53% | F22: 105.90% | H22: 3,879
A23: 十八、行政事业性收费收入 | B23: 1,700 | C23: 1,700 | D23: 1,928 | E23: 113.41% | F23: 117.99% | H23: 1,634
A24: 十九、罚没收入 | B24: 1,900 | C24: 1,900 | D24: 1,952 | E24: 102.74% | F24: 104.50% | H24: 1,868
A25: 二十、国有资本经营收入
A26: 二十一、国有资源(资产)有偿使用收入 | B26: 16,232 | C26: 16,232 | D26: 22,783 | E26: 140.36% | F26: 113.06% | H26: 20,151
A27: 二十二、捐赠收入 | B27: 3,000 | C27: 3,000 | D27: 3,260 | E27: 108.67%
A28: 二十三、政府住房基金收入 | B28: 875 | C28: 875 | D28: 165 | E28: 18.86%
A29: 二十四、其他收入 | F29: 0.00% | H29: 3,509
A30: 非税收入小计 | B30: =SUM(B22:B29) -> 28,007 | C30: =SUM(C22:C29) -> 28,007 | D30: =SUM(D22:D29) -> 34,196 | E30: 122.10% | F30: 110.16% | H30: 31,041
A31: 一般公共预算收入合计 | B31: =SUM(B30,B21) -> 92,926 | C31: =SUM(C30,C21) -> 92,926 | D31: =SUM(D30,D21) -> 92,956 | E31: 100.03% | F31: 110.94% | H31: 86,043
